fUSD/lending_fUSD_20250426
["ID","MTS","AMOUNT","RATE_DAILY","PERIOD"]
[359079667,1745698245820,-906.21,0.00019862,2]
[359079668,1745698245830,-456.5,0.00019862,2]
[359079669,1745698245841,-400.0,0.00019862,2]
[359079670,1745698245851,-581.46,0.00019862,2]
[359079671,1745698245861,-482.77,0.00019862,2]
[359079672,1745698245871,-524.72,0.00019862,2]
[359079673,1745698245880,-400.0,0.00019862,2]
[359079674,1745698245889,-748.98,0.00019862,2]
[359079675,1745698245899,-583.32,0.00019862,2]
[359079676,1745698245908,-400.0,0.00019862,2]
[359079677,1745698245919,-400.0,0.00019862,2]
[359079678,1745698245927,-1279.78,0.00019862,2]
[359079679,1745698245937,-400.0,0.00019862,2]
[359079680,1745698245946,-582.57,0.00019862,2]
[359079681,1745698245957,-400.0,0.00019862,2]
[359079682,1745698245966,-824.71,0.00019862,2]
[359079683,1745698245976,-575.87,0.00019862,2]
[359079684,1745698245986,-971.21,0.00019862,2]
[359079685,1745698245996,-400.0,0.00019862,2]
[359079686,1745698246006,-628.78,0.00019862,2]
[359079687,1745698246016,-828.87,0.00019862,2]
[359079688,1745698246025,-400.0,0.00019862,2]
[359079689,1745698246035,-2983.04,0.00019862,2]
[359079690,1745698246044,-941.46,0.00019862,2]
[359079691,1745698246054,-488.08,0.00019862,2]
[359079692,1745698246064,-400.0,0.00019862,2]
[359079693,1745698246073,-599.53,0.00019862,2]
[359079694,1745698246083,-408.23,0.00019862,2]
[359079695,1745698246093,-2623.48,0.00019862,2]
[359079696,1745698246103,-400.0,0.00019862,2]
[359079697,1745698246113,-465.22,0.00019862,2]
[359079698,1745698246122,-457.05,0.00019862,2]
[359079699,1745698246132,-6479.82,0.00019862,2]
[359079700,1745698246141,-451.86,0.00019862,2]
[359079701,1745698246152,-479.38,0.00019862,2]
[359079702,1745698246164,-261.63288512,0.00019862,2]
[359079703,1745698246173,-400.0,0.00019862,2]
[359079704,1745698246184,-400.0,0.00019862,2]
[359079705,1745698246194,-400.0,0.00019862,2]
[359079706,1745698246205,-400.0,0.00019862,2]
[359079707,1745698246215,-400.0,0.00019862,2]
[359079708,1745698246224,-400.0,0.00019862,2]
[359079709,1745698246235,-569.54,0.00019862,2]
[359079710,1745698246246,-400.0,0.00019862,2]
[359079711,1745698246256,-400.15,0.00019862,2]
[359079712,1745698246266,-4054.89,0.00019862,2]
[359079713,1745698246275,-400.0,0.00019862,2]
[359079714,1745698246286,-538.31,0.00019862,2]
[359079715,1745698246297,-400.0,0.00019862,2]
[359079716,1745698246308,-400.0,0.00019862,2]
[359079717,1745698246317,-781.75,0.00019862,2]
[359079718,1745698246327,-400.0,0.00019862,2]
[359079719,1745698246341,-735.89,0.00019862,2]
[359079721,1745698246350,-513.32,0.00019862,2]
[359079723,1745698246360,-400.0,0.00019862,2]
[359079725,1745698246370,-400.0,0.00019862,2]
[359079727,1745698246380,-400.0,0.00019863,2]
[359079729,1745698246390,-400.0,0.00019863,2]
[359079731,1745698246400,-400.0,0.00019863,2]
[359079733,1745698246410,-743.1,0.00019863,2]
[359079735,1745698246420,-400.0,0.00019863,2]
[359079737,1745698246430,-758.13,0.00019863,2]
[359079739,1745698246439,-400.0,0.00019863,2]
[359079741,1745698246449,-400.0,0.00019863,2]
[359079743,1745698246460,-400.0,0.00019863,2]
[359079746,1745698246470,-500.69,0.00019863,2]
[359079748,1745698246480,-400.0,0.00019863,2]
[359079750,1745698246490,-425.39,0.00019863,2]
[359079752,1745698246499,-400.0,0.00019863,2]
[359079754,1745698246509,-400.0,0.00019863,2]
[359079756,1745698246519,-550.63,0.00019863,2]
[359079758,1745698246528,-411.42,0.00019863,2]
[359079760,1745698246538,-400.0,0.00019863,2]
[359079762,1745698246550,-400.0,0.00019863,2]
[359079764,1745698246560,-400.0,0.00019863,2]
[359079766,1745698246569,-400.0,0.00019863,2]
[359079768,1745698246578,-400.0,0.00019863,2]
[359079770,1745698246587,-400.0,0.00019863,2]
[359079772,1745698246598,-400.0,0.00019863,2]
[359079774,1745698246607,-400.0,0.00019863,2]
[359079776,1745698246619,-400.0,0.00019863,2]
[359079778,1745698246628,-610.53,0.00019863,2]
[359079780,1745698246637,-400.0,0.00019863,2]
[359079782,1745698246646,-400.0,0.00019863,2]
[359079784,1745698246656,-400.0,0.00019863,2]
[359079786,1745698246666,-400.0,0.00019863,2]
[359079788,1745698246675,-400.0,0.00019863,2]
[359079790,1745698246684,-794.2,0.00019863,2]
[359079792,1745698246694,-400.0,0.00019863,2]
[359079794,1745698246703,-422.34,0.00019863,2]
[359079796,1745698246713,-400.0,0.00019863,2]
[359079797,1745698246723,-400.0,0.00019863,2]
[359079799,1745698246732,-590.0,0.00019863,2]
[359079801,1745698246743,-400.0,0.00019863,2]
[359079803,1745698246754,-400.0,0.00019863,2]
[359079806,1745698246763,-258.34889673,0.00019863,2]
[359079807,1745698246773,-400.0,0.00019863,2]
[359079809,1745698246783,-575.54,0.00019863,2]
[359079812,1745698246794,-400.0,0.00019863,2]
[359079814,1745698246804,-421.19,0.00019863,2]
[359079816,1745698246816,-400.0,0.00019863,2]
[359079818,1745698246825,-400.0,0.00019863,2]
[359079820,1745698246834,-453.24,0.00019863,2]
[359079822,1745698246843,-400.0,0.00019863,2]
[359079823,1745698246853,-440.65837346,0.00019863,2]
[359079825,1745698246863,-616.31,0.00019863,2]
[359079827,1745698246872,-400.0,0.00019863,2]
[359079828,1745698246883,-400.0,0.00019863,2]
[359079830,1745698246892,-400.08,0.00019863,2]
[359079832,1745698246901,-400.0,0.00019863,2]
[359079834,1745698246910,-400.0,0.00019863,2]
[359079836,1745698246920,-461.16,0.00019863,2]
[359079838,1745698246929,-400.0,0.00019863,2]
[359079840,1745698246939,-400.0,0.00019863,2]
[359079842,1745698246949,-400.0,0.00019863,2]
[359079844,1745698246959,-491.46,0.00019863,2]
[359079846,1745698246969,-400.0,0.00019863,2]
[359079848,1745698246978,-557.34,0.00019863,2]
[359079851,1745698246988,-400.0,0.00019863,2]
[359079852,1745698246997,-738.97,0.00019863,2]
[359079855,1745698247007,-494.33021568,0.00019863,2]
[359079856,1745698247016,-400.0,0.00019863,2]
[359079858,1745698247026,-633.98,0.00019863,2]
[359079860,1745698247035,-400.0,0.00019863,2]
[359079862,1745698247045,-522.79012304,0.00019863,2]
[359079865,1745698247055,-400.0,0.00019863,2]
[359079867,1745698247065,-400.0,0.00019863,2]
[359079869,1745698247074,-549.91,0.00019863,2]
[359079871,1745698247084,-457.65,0.00019863,2]
[359079873,1745698247093,-444.46,0.00019863,2]
[359079875,1745698247103,-400.0,0.00019863,2]
[359079877,1745698247114,-400.0,0.00019863,2]
[359079879,1745698247123,-607.57,0.00019863,2]
[359079881,1745698247133,-400.0,0.00019863,2]
[359079883,1745698247142,-400.0,0.00019863,2]
[359079885,1745698247151,-400.0,0.00019863,2]
[359079887,1745698247162,-400.0,0.00019863,2]
[359079889,1745698247171,-551.4,0.00019863,2]
[359079890,1745698247180,-400.0,0.00019863,2]
[359079893,1745698247191,-695.56,0.00019863,2]
[359079894,1745698247202,-515.68338279,0.00019863,2]
[359079896,1745698247212,-400.0,0.00019863,2]
[359079898,1745698247223,-300.0,0.00019863,2]
[359079901,1745698247234,-400.0,0.00019863,2]
[359079903,1745698247244,-400.0,0.00019863,2]
[359079905,1745698247255,-504.77,0.00019863,2]
[359079907,1745698247266,-400.0,0.00019863,2]
[359079909,1745698247275,-400.0,0.00019863,2]
[359079910,1745698247285,-400.0,0.00019863,2]
[359079912,1745698247295,-400.0,0.00019863,2]
[359079914,1745698247304,-400.0,0.00019863,2]
[359079916,1745698247314,-400.0,0.00019863,2]
[359079918,1745698247323,-513.62,0.00019863,2]
[359079919,1745698247334,-400.0,0.00019863,2]
[359079920,1745698247344,-546.02,0.00019863,2]
[359079921,1745698247353,-400.0,0.00019863,2]
[359079922,1745698247363,-400.0,0.00019863,2]
[359079923,1745698247372,-400.0,0.00019863,2]
[359079924,1745698247382,-400.0,0.00019863,2]
[359079925,1745698247392,-438.1,0.00019863,2]
[359079926,1745698247402,-400.0,0.00019863,2]
[359079927,1745698247411,-810.02,0.00019863,2]
[359079928,1745698247421,-400.0,0.00019863,2]
[359079929,1745698247430,-400.0,0.00019863,2]
[359079930,1745698247440,-481.9,0.00019863,2]
[359079931,1745698247449,-400.0,0.00019863,2]
[359079932,1745698247459,-1181.25,0.00019863,2]
[359079933,1745698247469,-400.0,0.00019863,2]
[359079934,1745698247478,-400.0,0.00019863,2]
[359079935,1745698247488,-400.0,0.00019863,2]
[359079936,1745698247497,-400.0,0.00019863,2]
[359079937,1745698247506,-360.38556526,0.00019863,2]
[359079938,1745698247515,-400.0,0.00019863,2]
[359079939,1745698247525,-448.97,0.00019863,2]
[359079940,1745698247534,-799.88,0.00019863,2]
[359079941,1745698247544,-1419.14,0.00019863,2]
[359079942,1745698247554,-400.0,0.00019863,2]
[359079943,1745698247566,-400.0,0.00019863,2]
[359079944,1745698247576,-466.08524711,0.00019863,2]
[359079945,1745698247586,-400.0,0.00019863,2]
[359079946,1745698247596,-400.0,0.00019863,2]
[359079947,1745698247607,-400.0,0.00019863,2]
[359079948,1745698247616,-604.32,0.00019863,2]
[359079949,1745698247626,-400.0,0.00019863,2]
[359079950,1745698247637,-400.0,0.00019863,2]
[359079951,1745698247647,-400.0,0.00019863,2]
[359079952,1745698247656,-400.0,0.00019863,2]
[359079953,1745698247665,-400.0,0.00019863,2]
[359079954,1745698247675,-1346.91,0.00019863,2]
[359079955,1745698247684,-679.96,0.00019863,2]
[359079956,1745698247694,-400.0,0.00019863,2]
[359079957,1745698247704,-400.0,0.00019863,2]
[359079958,1745698247713,-483.39,0.00019863,2]
[359079959,1745698247722,-694.78,0.00019863,2]
[359079960,1745698247732,-400.0,0.00019863,2]
[359079961,1745698247742,-724.37,0.00019863,2]
[359079962,1745698247751,-400.0,0.00019863,2]
[359079963,1745698247760,-547.27,0.00019863,2]
[359079964,1745698247770,-400.0,0.00019863,2]
[359079965,1745698247779,-1570.14,0.00019863,2]
[359079966,1745698247789,-400.0,0.00019863,2]
[359079967,1745698247798,-400.0,0.00019863,2]
[359079968,1745698247807,-400.0,0.00019863,2]
[359079969,1745698247816,-400.0,0.00019863,2]
[359079970,1745698247826,-611.29,0.00019863,2]
[359079971,1745698247838,-556.1,0.00019863,2]
[359079972,1745698247847,-400.0,0.00019863,2]
[359079973,1745698247857,-439.43733849,0.00019863,2]
[359079974,1745698247866,-400.0,0.00019863,2]
[359079975,1745698247876,-400.0,0.00019863,2]
[359079976,1745698247885,-400.0,0.00019863,2]
[359079977,1745698247895,-400.0,0.00019863,2]
[359079978,1745698247904,-430.56,0.00019863,2]
[359079979,1745698247913,-570.11,0.00019863,2]
[359079980,1745698247923,-400.0,0.00019863,2]
[359079981,1745698247933,-400.0,0.00019863,2]
[359079982,1745698247944,-731.57,0.00019863,2]
[359079983,1745698247953,-429.96,0.00019863,2]
[359079984,1745698247964,-400.0,0.00019863,2]
[359079985,1745698247975,-530.31,0.00019863,2]
[359079986,1745698247985,-517.69,0.00019863,2]
[359079987,1745698247995,-565.83,0.00019863,2]
[359079988,1745698248006,-400.0,0.00019863,2]
[359079989,1745698248016,-494.5,0.00019863,2]
[359079990,1745698248025,-400.0,0.00019863,2]
[359079991,1745698248034,-571.54,0.00019863,2]
[359079992,1745698248044,-400.0,0.00019863,2]
[359079993,1745698248054,-598.11,0.00019863,2]
[359079994,1745698248063,-400.0,0.00019863,2]
[359079995,1745698248072,-412.76,0.00019863,2]
[359079996,1745698248086,-400.0,0.00019863,2]
[359079997,1745698248097,-400.0,0.00019863,2]
[359079998,1745698248106,-400.0,0.00019863,2]
[359079999,1745698248116,-400.0,0.00019863,2]
[359080000,1745698248126,-400.0,0.00019863,2]
[359080001,1745698248136,-400.0,0.00019863,2]
[359080002,1745698248146,-579.39,0.00019863,2]
[359080003,1745698248156,-400.0,0.00019863,2]
[359080004,1745698248166,-400.0,0.00019863,2]
[359080005,1745698248176,-547.34,0.00019863,2]
[359080006,1745698248186,-400.0,0.00019863,2]
[359080007,1745698248195,-3091.27,0.00019863,2]
[359080008,1745698248205,-400.0,0.00019863,2]
[359080009,1745698248214,-400.0,0.00019863,2]
[359080010,1745698248223,-400.0,0.00019863,2]
[359080011,1745698248231,-780.99,0.00019863,2]
[359080012,1745698248241,-702.57,0.00019863,2]
[359080013,1745698248250,-400.0,0.00019863,2]
[359080014,1745698248260,-580.91,0.00019863,2]
[359080015,1745698248270,-400.0,0.00019863,2]
[359080016,1745698248279,-637.89,0.00019863,2]
[359080017,1745698248290,-489.73,0.00019863,2]
[359080018,1745698248300,-400.0,0.00019863,2]
[359080019,1745698248310,-573.18,0.00019863,2]
[359080020,1745698248320,-656.69,0.00019863,2]
[359080021,1745698248333,-664.54,0.00019863,2]
[359080022,1745698248343,-400.0,0.00019863,2]
[359080023,1745698248352,-354.17554135,0.00019863,2]
[359080024,1745698248362,-452.76,0.00019863,2]
[359080025,1745698248372,-400.0,0.00019863,2]
[359080026,1745698248382,-400.0,0.00019863,2]
[359080027,1745698248392,-471.26,0.00019863,2]
[359080028,1745698248402,-400.0,0.00019863,2]
[359080029,1745698248413,-400.0,0.00019863,2]
[359080030,1745698248424,-400.0,0.00019863,2]
[359080031,1745698248434,-400.0,0.00019863,2]
[359080032,1745698248445,-400.0,0.00019863,2]
[359080033,1745698248455,-400.0,0.00019863,2]
[359080034,1745698248466,-581.65,0.00019863,2]
[359080035,1745698248477,-400.0,0.00019863,2]
[359080036,1745698248487,-400.0,0.00019863,2]
[359080037,1745698248498,-625.49,0.00019863,2]
[359080038,1745698248508,-444.3,0.00019863,2]
[359080039,1745698248518,-540.67,0.00019863,2]
[359080040,1745698248528,-400.0,0.00019863,2]
[359080041,1745698248538,-410.25886168,0.00019863,2]
[359080042,1745698248548,-400.0,0.00019863,2]
[359080043,1745698248560,-400.0,0.00019863,2]
[359080044,1745698248570,-400.0,0.00019863,2]
[359080045,1745698248583,-444.48,0.00019863,2]
[359080046,1745698248593,-400.0,0.00019863,2]
[359080047,1745698248604,-400.0,0.00019863,2]
[359080048,1745698248614,-400.0,0.00019863,2]
[359080049,1745698248625,-400.0,0.00019863,2]
[359080050,1745698248636,-448.85,0.00019863,2]
[359080051,1745698248647,-400.0,0.00019863,2]
[359080052,1745698248658,-204.66835678,0.00019863,2]
[359080053,1745698248668,-732.97,0.00019863,2]
[359080054,1745698248678,-400.0,0.00019863,2]
[359080055,1745698248688,-400.0,0.00019863,2]
[359080056,1745698248698,-532.53,0.00019863,2]
[359080057,1745698248709,-655.85,0.00019863,2]
[359080058,1745698248719,-400.0,0.00019863,2]
[359080059,1745698248729,-738.99,0.00019863,2]
[359080060,1745698248739,-400.0,0.00019863,2]
[359080061,1745698248749,-400.0,0.00019863,2]
[359080062,1745698248759,-400.0,0.00019863,2]
[359080063,1745698248770,-400.0,0.00019863,2]
[359080064,1745698248780,-400.0,0.00019863,2]
[359080065,1745698248790,-429.78,0.00019863,2]
[359080066,1745698248800,-400.0,0.00019863,2]
[359080067,1745698248810,-400.0,0.00019863,2]
[359080068,1745698248820,-400.0,0.00019863,2]
[359080069,1745698248831,-566.14,0.00019863,2]
[359080070,1745698248842,-877.53,0.00019863,2]
[359080071,1745698248852,-400.0,0.00019863,2]
[359080072,1745698248862,-400.0,0.00019863,2]
[359080073,1745698248872,-400.0,0.00019863,2]
[359080074,1745698248882,-400.0,0.00019863,2]
[359080075,1745698248892,-400.0,0.00019863,2]
[359080076,1745698248903,-400.0,0.00019863,2]
[359080077,1745698248912,-400.0,0.00019863,2]
[359080078,1745698248923,-400.0,0.00019863,2]
[359080079,1745698248932,-2128.94,0.00019863,2]
[359080080,1745698248943,-769.99,0.00019863,2]
[359080081,1745698248952,-3736.62,0.00019863,2]
[359080082,1745698248963,-708.0,0.00019863,2]
[359080083,1745698248973,-867.12,0.00019863,2]
[359080084,1745698248983,-527.81,0.00019863,2]
[359080085,1745698248993,-409.63,0.00019863,2]
[359080086,1745698249003,-400.0,0.00019863,2]
[359080087,1745698249013,-400.0,0.00019863,2]
[359080088,1745698249023,-400.0,0.00019863,2]
[359080089,1745698249033,-400.0,0.00019863,2]
[359080090,1745698249043,-400.0,0.00019863,2]
[359080091,1745698249054,-400.0,0.00019863,2]
[359080092,1745698249065,-652.08,0.00019863,2]
[359080093,1745698249076,-400.0,0.00019863,2]
[359080094,1745698249086,-400.0,0.00019863,2]
[359080095,1745698249097,-411.59,0.00019863,2]
[359080096,1745698249108,-400.0,0.00019863,2]
[359080097,1745698249118,-400.0,0.00019863,2]
[359080098,1745698249129,-400.0,0.00019863,2]
[359080099,1745698249139,-400.0,0.00019863,2]
[359080100,1745698249150,-400.0,0.00019863,2]
[359080101,1745698249160,-714.85,0.00019863,2]
[359080102,1745698249170,-400.0,0.00019863,2]
[359080103,1745698249181,-400.0,0.00019863,2]
[359080104,1745698249191,-400.0,0.00019863,2]
[359080105,1745698249201,-400.0,0.00019863,2]
[359080106,1745698249211,-2671.18,0.00019863,2]
[359080107,1745698249222,-248.49131673,0.00019863,2]
[359080108,1745698249231,-400.0,0.00019863,2]
[359080109,1745698249242,-400.0,0.00019863,2]
[359080110,1745698249252,-400.0,0.00019863,2]
[359080111,1745698249262,-445.57,0.00019863,2]
[359080112,1745698249272,-400.0,0.00019863,2]
[359080113,1745698249282,-400.0,0.00019863,2]
[359080114,1745698249291,-400.0,0.00019863,2]
[359080115,1745698249302,-432.25,0.00019863,2]
[359080116,1745698249312,-400.0,0.00019863,2]
[359080117,1745698249322,-400.0,0.00019863,2]
[359080118,1745698249333,-400.0,0.00019863,2]
[359080119,1745698249342,-622.1,0.00019863,2]
[359080120,1745698249352,-400.0,0.00019863,2]
[359080121,1745698249362,-745.62,0.00019863,2]
[359080122,1745698249372,-400.0,0.00019863,2]
[359080123,1745698249382,-400.0,0.00019863,2]
[359080124,1745698249392,-400.0,0.00019863,2]
[359080125,1745698249402,-427.92,0.00019863,2]
[359080126,1745698249412,-485.66,0.00019863,2]
[359080127,1745698249422,-400.0,0.00019863,2]
[359080128,1745698249432,-400.0,0.00019863,2]
[359080129,1745698249442,-1604.68,0.00019863,2]
[359080130,1745698249453,-906.67,0.00019863,2]
[359080131,1745698249464,-740.19,0.00019863,2]
[359080132,1745698249474,-400.0,0.00019863,2]
[359080133,1745698249486,-400.0,0.00019863,2]
[359080134,1745698249496,-400.0,0.00019863,2]
[359080135,1745698249506,-400.0,0.00019863,2]
[359080136,1745698249516,-618.53,0.00019863,2]
[359080137,1745698249527,-400.0,0.00019863,2]
[359080138,1745698249536,-480.63,0.00019863,2]
[359080139,1745698249547,-400.0,0.00019863,2]
[359080140,1745698249558,-697.87,0.00019863,2]
[359080141,1745698249568,-230.83827882,0.00019863,2]
[359080142,1745698249578,-535.25,0.00019863,2]
[359080143,1745698249588,-400.0,0.00019863,2]
[359080144,1745698249598,-402.54,0.00019863,2]
[359080145,1745698249608,-547.15,0.00019863,2]
[359080146,1745698249618,-400.0,0.00019863,2]
[359080147,1745698249628,-566.63,0.00019863,2]
[359080148,1745698249638,-609.03,0.00019863,2]
[359080149,1745698249649,-1000.15,0.00019863,2]
[359080150,1745698249659,-400.0,0.00019863,2]
[359080151,1745698249670,-445.16,0.00019863,2]
[359080152,1745698249680,-400.0,0.00019863,2]
[359080153,1745698249690,-637.23,0.00019863,2]
[359080154,1745698249701,-400.0,0.00019863,2]
[359080155,1745698249711,-1061.91,0.00019863,2]
[359080156,1745698249722,-400.0,0.00019863,2]
[359080157,1745698249732,-400.0,0.00019863,2]
[359080158,1745698249742,-400.0,0.00019863,2]
[359080159,1745698249752,-629.85,0.00019863,2]
[359080160,1745698249762,-400.0,0.00019863,2]
[359080161,1745698249772,-400.0,0.00019863,2]
[359080162,1745698249782,-400.0,0.00019863,2]
[359080163,1745698249792,-400.0,0.00019863,2]
[359080164,1745698249803,-588.95,0.00019863,2]
[359080165,1745698249814,-500.0,0.00019863,2]
[359080166,1745698249825,-500.0,0.00019863,2]
[359080167,1745698249835,-739.0,0.00019864,2]
[359080168,1745698249846,-400.0,0.00019864,2]
[359080169,1745698249858,-400.0,0.00019864,2]
[359080170,1745698249868,-753.9,0.00019864,2]
[359080171,1745698249878,-400.0,0.00019864,2]
[359080172,1745698249888,-821.78,0.00019864,2]
[359080173,1745698249901,-824.1,0.00019864,2]
[359080174,1745698249914,-642.42,0.00019864,2]
[359080175,1745698249925,-168.97648436,0.00019871,2]
[359080176,1745698249935,-500.0,0.00019873,2]
[359080177,1745698249945,-500.0,0.00019873,2]
[359080178,1745698249955,-536.76792142,0.00019873,2]
[359080179,1745698249965,-617.11095831,0.00019873,2]
[359080180,1745698249974,-301.25150932,0.00019873,2]
[359080181,1745698249984,-150.0,0.00019877,2]
[359080182,1745698249993,-150.0,0.00019879,2]
[359080183,1745698250004,-161.17206144,0.00019886,2]
[359080184,1745698250013,-17629.1062177,0.00019886,2]
[359080185,1745698250023,-161.17206143,0.00019888,2]
[359080186,1745698250034,-669.50672135,0.0001989,2]
[359080187,1745698250044,-161.17206143,0.00019891,2]
[359080188,1745698250053,-739.0,0.00019891,2]
[359080189,1745698250063,-2830.011,0.00019893,2]
[359080190,1745698250074,-174.738,0.00019893,2]
[359080191,1745698250085,-161.17206143,0.00019893,2]
[359080192,1745698250096,-161.17206143,0.00019895,2]
[359080193,1745698250106,-161.17206143,0.00019898,2]
[359080194,1745698250116,-500.0,0.00019899,2]
[359080195,1745698250126,-86488.4,0.000199,2]
[359080196,1745698250136,-4385.74016815,0.000199,2]
[359080197,1745698250146,-334.31970383,0.000199,2]
[359080198,1745698250156,-161.17206143,0.000199,2]
[359080199,1745698250167,-168.97648436,0.000199,2]
[359080200,1745698250177,-2582.79922607,0.000199,2]
[359080201,1745698250186,-1406.86184377,0.000199,2]
[359080202,1745698250198,-3750.76996326,0.000199,2]
[359080203,1745698250207,-1490.19561477,0.000199,2]
[359080204,1745698250218,-150.0,0.00019912,2]
[359080205,1745698250228,-150.0,0.00019915,2]
[359080206,1745698250240,-739.0,0.00019919,2]
[359080207,1745698250250,-449.57058462,0.0001992,2]
[359080208,1745698250260,-6193.0,0.00019924,2]
[359080209,1745698250270,-201.859,0.00019924,2]
[359080210,1745698250280,-257.141,0.00019924,2]
[359080211,1745698250290,-2149.0,0.00019924,2]
[359080212,1745698250301,-3991.0,0.00019924,2]
[359080213,1745698250313,-872.0,0.00019924,2]
[359080214,1745698250323,-877.0,0.00019924,2]
[359080215,1745698250334,-1000.0,0.00019937,2]
[359080216,1745698250344,-150.0,0.00019943,2]
[359080217,1745698250354,-739.0,0.00019946,2]
[359080218,1745698250364,-871.0,0.0001995,2]
[359080219,1745698250374,-154.71,0.0001995,2]
[359080220,1745698250385,-150.0,0.00019959,2]
[359080221,1745698250396,-150.0,0.00019965,2]
[359080222,1745698250407,-150.0,0.00019965,2]
[359080223,1745698250418,-150.0,0.00019965,2]
[359080224,1745698250428,-920.0,0.00019965,2]
[359080225,1745698250441,-1336.0,0.00019965,2]
[359080226,1745698250454,-1287.0,0.00019965,2]
[359080227,1745698250465,-796.0,0.00019965,2]
[359080228,1745698250475,-579.0,0.00019965,2]
[359080229,1745698250485,-2063.0,0.00019965,2]
[359080230,1745698250495,-1350.8,0.00019972,2]
[359080231,1745698250505,-1350.8,0.00019972,2]
[359080232,1745698250515,-1350.8,0.00019972,2]
[359080233,1745698250525,-1350.8,0.00019972,2]
[359080234,1745698250535,-1350.8,0.00019972,2]
[359080235,1745698250546,-1350.8,0.00019972,2]
[359080236,1745698250839,-1350.8,0.00019972,2]
[359080237,1745698250859,-1350.8,0.00019972,2]
[359080238,1745698250868,-1350.8,0.00019972,2]
[359080239,1745698250878,-1350.8,0.00019972,2]
[359080240,1745698250888,-1350.8,0.00019972,2]
[359080241,1745698250897,-1350.8,0.00019972,2]
[359080242,1745698250907,-1350.8,0.00019972,2]
[359080243,1745698250918,-75.61887285,0.00019972,2]
[359080244,1745698251339,-908.95805001,0.00019972,2]
[359080245,1745698251351,-366.22307714,0.00019972,2]
[359080246,1745698251361,-956.49832085,0.00019972,2]
[359080247,1745698252811,-1.41177087,0.00019863,2]
[359080248,1745698255559,-398.58822913,0.00019863,2]
[359080249,1745698255570,-394.30167915,0.00019972,2]
[359080250,1745698255579,-1350.8,0.00019972,2]
[359080251,1745698255589,-1350.8,0.00019972,2]
[359080252,1745698255599,-1270.14600125,0.00019972,2]
[359080253,1745698256827,-400.0,0.00019588,2]
[359080254,1745698256839,-151.0,0.00019726,2]
[359080255,1745698256850,-210.85943392,0.00019762,2]
[359080256,1745698256860,-400.0,0.00019862,2]
[359080257,1745698256870,-971.56460657,0.00019862,2]
[359080258,1745698256880,-151.0,0.00019862,2]
[359080259,1745698256890,-80.65399875,0.00019972,2]
[359080260,1745698256902,-1350.8,0.00019972,2]
[359080261,1745698256912,-518.47704658,0.00019972,2]
[359080262,1745698323431,150.0,0.0002573,30]
[359080263,1745698326952,265.02964784,0.0002573,30]
[359080264,1745698328298,150.0,0.0002573,30]
[359080265,1745698329657,150.0,0.0002573,30]